Cogmind - Beta 16.1 @@@ ROGUE MODE // 2026.04.05 @ 16:12:00 Player: KURIIRI Result: Destroyed by Shrapnel Trap Performance ------------- Evolutions (0) 0 Regions Visited (2) 400 Robots Destroyed (25) 125 Value Destroyed (568) 568 Prototype IDs (3) 60 Alien Tech Used (0) 0 Bonus (0) 0 TOTAL SCORE: 1153 Bonus ------- None Cogmind --------- Core Integrity 0/250 Matter 140/300 Energy 246/250 System Corruption 0% Temperature Cool (2) Movement Treading (160) Location -10/Subcaves Parts ------- > --- POWER (1) -------- Ion Engine > --- PROPULSION (2) --- Light Treads Spiked Treads > --- UTILITY (2) ------ Large Storage Unit Improved Terrain Scanner > --- WEAPON (2) ------- Particle Cannon Particle Cannon > --- INVENTORY (15) --- Ion Engine Light Treads Light Treads Wheel Compact Wheel Heat Sink Cooling System High-capacity Storage Unit Large Matter Pod (0) Seismic Detector Subdweller Laser Particle Cannon Particle Cannon Light Assault Rifle Grenade Launcher Peak State ------------ > --- POWER ------------ Ion Engine > --- PROPULSION ------- Light Treads Spiked Treads > --- UTILITY ---------- Cooling System Large Storage Unit > --- WEAPON ----------- Particle Cannon Particle Cannon > --- INVENTORY -------- Ion Engine Light Treads Light Treads Wheel Compact Wheel Heat Sink High-capacity Storage Unit Large Matter Pod Improved Terrain Scanner Seismic Detector Subdweller Laser Particle Cannon Particle Cannon Light Assault Rifle Grenade Launcher [Rating: 13] Favorites ----------- Power Ion Engine Engine Ion Engine Propulsion Light Treads Treads Light Treads Leg Aluminum Leg Utility Large Storage Unit Device Cooling System Storage Large Storage Unit Processor Visual Processing Unit Weapon Particle Cannon Energy Gun Small Laser Energy Cannon Particle Cannon Ballistic Gun Assault Rifle Launcher Grenade Launcher Build | -11 -10 -10 ------- Run | Yrd Mat Sub Slots Evolved . | . . . Power . | . . . Propulsion . | . . . Utility . | . . . Weapon . | . . . Parts Attached 15 | 3 10 2 Power . | . . . Engine . | . . . Core . | . . . Reactor . | . . . Propulsion 3 | 2 . 1 Treads 3 | 2 . 1 Leg . | . . . Wheel . | . . . Hover . | . . . Flight . | . . . Utility 9 | 1 7 1 Device 4 | 1 2 1 Storage 4 | . 4 . Processor 1 | . 1 . Hackware . | . . . Protection . | . . . Artifact . | . . . Weapon 3 | . 3 . Energy Gun . | . . . Energy Cannon 2 | . 2 . Ballistic Gun . | . . . Ballistic Cannon . | . . . Launcher 1 | . 1 . Special Weapon . | . . . Impact Weapon . | . . . Slashing Weapon . | . . . Piercing Weapon . | . . . Special Melee Weapon . | . . . Unidentified Prototypes . | . . . Parts Lost . | . . . Power . | . . . Propulsion . | . . . Utility . | . . . Weapon . | . . . Highest Loss Streak . | . . . To Critical Strikes . | . . . Average Backups 11 | 6 10 13 Power 1 | 1 1 1 Propulsion 3 | 4 2 3 Utility 3 | . 2 5 Weapon 4 | 1 3 4 Tool/Special . | . . . Unused Backups 17 | 6 2 9 Power 3 | 1 1 1 Propulsion 5 | 2 . 3 Utility 2 | 1 . 1 Weapon 7 | 2 1 4 Tool/Special . | . . . Average Slot Usage (%) 99 | . 99 100 Engine 14 | . 14 14 Treads 27 | . 27 28 Device 13 | . 13 14 Storage 14 | . 14 14 Energy Cannon 26 | . 25 27 Launcher 1 | . 2 . Peak Build Rating 13 | 7 11 13 Average Rating 10 | 6 10 11 On Entrance 8 | 6 7 11 Avg Prop Armor Cover (%) . | . . . Naked Turns . | . . . Heaviest Build 54 | 14 54 35 Greatest Support 40 | 40 40 40 Greatest Overweight (x) 1 | . 1 . Average Overweight (x) . | . . . Largest Inventory Capacity 20 | 8 20 15 Average Capacity 15 | 8 16 15 Most Carried 15 | 6 13 15 Average Carried 11 | 5 10 13 Final Capacity 15 | 8 15 15 Final Carried 15 | 4 13 15 Class Distribution -------------------- 100% | Mutant Dominant Class ---------------- Mutant | -10/Materials Mutant | -10/Subcaves Resources | -11 -10 -10 ----------- Run | Yrd Mat Sub Matter Collected 421 | 234 186 1 Remotely . | . . . Salvage Created 639 | 82 506 51 Parts 45 | 3 39 3 Haulers Intercepted 1 | . 1 . Recyclers Shooed 1 | . 1 . Parts Field Recycled . | . . . Retrieved Matter . | . . . Parts Self-Destructed . | . . . Prevented . | . . . Parts Restored . | . . . Kills | -11 -10 -10 ------- Run | Yrd Mat Sub Combat Hostiles Destroyed 16 | . 13 3 Cannons 10 | . 9 1 AOE 6 | . 4 2 Classes Destroyed 9 | 2 6 1 Worker 1 | . 1 . Tunneler 2 | 1 1 . Hauler 1 | . 1 . Recycler 1 | 1 . . Operator 1 | . 1 . Watcher 3 | . 3 . Swarmer 6 | . 6 . Grunt 7 | . 7 . Subdweller 3 | . . 3 Best Kill Streak 3 | 1 3 2 Combat Bots Only 3 | . 3 2 Max Kills in Single Turn 2 | 1 2 1 Gunslinging . | . . . Exploded 2 | . 2 1 Melee . | . . . Uniques/NPCs Destroyed . | . . . Combat | -11 -10 -10 -------- Run | Yrd Mat Sub Hostile Shots Fired 82 | . 56 26 Missed 26 | . 17 9 Hits 56 | . 39 17 Projectile 56 | . 39 17 Damage Taken 775 | . 336 439 Core 270 | . 54 216 Absorbed by Shields . | . . . Regen/Repaired (Parts) 66 | . 66 . Core Remaining (%) 100 | 100 . . Volleys Fired 89 | 8 49 32 Largest 2 | 2 2 2 Hottest 136 | 60 136 136 Shots Fired 156 | 16 80 60 Gun 16 | 16 . . Cannon 129 | . 74 55 Launcher 11 | . 6 5 Special . | . . . Kinetic 8 | 8 . . Thermal 137 | 8 74 55 Explosive 11 | . 6 5 Electromagnetic . | . . . Robot Hit Streak 9 | 5 5 9 Robot Miss Streak 6 | 2 6 1 Penetration Max . | . . . Secondary Targets . | . . . Shots Hit Robots 62 | 8 35 19 Core Hits 32 | 3 22 7 Critical Kills . | . . . Critical Parts Destroyed . | . . . Critical Strikes . | . . . Melee Attacks . | . . . Impact . | . . . Slashing . | . . . Piercing . | . . . Sneak Attacks . | . . . Combat Hostiles . | . . . Follow-up Attacks . | . . . Damage Inflicted 1811 | 100 1030 681 Guns 100 | 100 . . Cannons 1088 | . 800 288 Explosions 607 | . 214 393 Melee . | . . . Ramming 16 | . 16 . Kinetic 65 | 65 . . Thermal 1123 | 35 800 288 Explosive 607 | . 214 393 Electromagnetic . | . . . Impact . | . . . Slashing . | . . . Piercing . | . . . Highest Corruption . | . . . Average Corruption . | . . . Corruption Purged . | . . . Corruption Blocked . | . . . Overload Shots . | . . . Overflow Damage 15 | . 14 1 Projectiles 14 | . 13 1 Explosions . | . . . Melee 1 | . 1 . Knockbacks . | . . . Impact . | . . . Kinetic . | . . . Secondary . | . . . Self-Inflicted Damage . | . . . Shots . | . . . Rammed 2 | . 2 . Targets Rammed 2 | . 2 . Kicked . | . . . Crushed . | . . . Highest Temperature 410 | . 410 . Average Temperature 102 | . 102 . Received Heat Transfer 150 | . 48 102 Siege Activations . | . . . Martial Activations . | . . . Shielding Activations . | . . . Robots Disrupted . | . . . Combat Hostiles . | . . . Robots Corrupted . | . . . Combat Hostiles . | . . . Parts Fried . | . . . Impact Corruptions 1 | . 1 . Robots Melted . | . . . Combat Hostiles . | . . . Parts Melted 3 | . 2 1 Heat Transferred 2036 | 75 1443 518 Parts Sabotaged . | . . . Parts Stolen . | . . . Parts Stripped . | . . . Power Chain Reactions . | . . . Alert | -11 -10 -10 ------- Run | Yrd Mat Sub Maximum Alert Level . | . . . Low Security (%) 100 | 100 100 . Level 1 . | . . . Level 2 . | . . . Level 3 . | . . . Level 4 . | . . . Level 5 . | . . . High Security . | . . . Max Security . | . . . Peak Influence 178 | 5 178 . Initial . | . . . Average 82 | 1 85 . Influence Increases 617 | 10 607 . Destroy 0b10 Robot/C 260 | . 260 . Destroy 0b10 Robot/NC 45 | 10 35 . Destroy Leader 88 | . 88 . Successful Hack 60 | . 60 . Select Force Hacks 60 | . 60 . Disable Machine 75 | . 75 . Destroy Structure 29 | . 29 . Influence Decreases 617 | 10 512 95 Entered New Map 47 | . . 47 Time Decay 570 | 10 512 48 Squads Dispatched 5 | . 5 . Investigation 4 | . 4 . Extermination . | . . . Reinforcement 1 | . 1 . Assault . | . . . Garrison . | . . . Intercept . | . . . Searches Triggered . | . . . Construction Impeded . | . . . Haulers Reinforced . | . . . Active Scanning Responses . | . . . Cargo Convoy Interrupts . | . . . Stealth | -11 -10 -10 --------- Run | Yrd Mat Sub Distress Signals 1 | . 1 . Communications Jammed . | . . . Distress Signals . | . . . Times Spotted 22 | . 19 3 Peak Tracking Total 4 | . 4 2 Tactical Retreats . | . . . Traps | -11 -10 -10 ------- Run | Yrd Mat Sub Traps Triggered 2 | . . 2 Indirectly . | . . . Trap Hack Attempts . | . . . Triggered . | . . . Disarmed . | . . . Reprogrammed . | . . . Reused . | . . . Traps Extracted . | . . . Installed . | . . . Triggered . | . . . Machines | -11 -10 -10 ---------- Run | Yrd Mat Sub Machines Disabled 5 | . 5 . Max in Single Turn 2 | . 2 . Machines Repaired . | . . . Machines Dismantled . | . . . Machines Sabotaged . | . . . Overloaded Fab Kills . | . . . Hacking | -11 -10 -10 --------- Run | Yrd Mat Sub Machines Accessed 10 | . 10 . Terminals 7 | . 7 . Fabricators . | . . . Repair Stations 1 | . 1 . Recycling Units 2 | . 2 . Scanalyzers . | . . . Garrison Access . | . . . Total Hacks 27 | . 27 . Successful 17 | . 17 . Failed 10 | . 10 . Catastrophic . | . . . Database Lockouts . | . . . Manual 16 | . 16 . Terminals 20 | . 20 . Fabricators . | . . . Repair Stations 2 | . 2 . Recycling Units 5 | . 5 . Scanalyzers . | . . . Garrison Access . | . . . Terminal Hacks 3 | . 3 . Robot Analysis 1 | . 1 . Prototype ID Bank 1 | . 1 . Recycling Unit Index 1 | . 1 . Fabricator Hacks . | . . . Repair Station Hacks 2 | . 2 . Scan Component 1 | . 1 . Repair 1 | . 1 . Recycling Unit Hacks 1 | . 1 . Retrieve Components 1 | . 1 . Scanalyzer . | . . . Garrison Access Hacks . | . . . Unauthorized Hacks 11 | . 11 . Terminals 9 | . 9 . Botnet 3 | . 3 . Operators 1 | . 1 . Skim 5 | . 5 . Fabricators . | . . . Repair Stations . | . . . Recycling Units 2 | . 2 . Tunnel 2 | . 2 . Scanalyzers . | . . . Garrison Access . | . . . Data Cores Recovered . | . . . Used . | . . . Hacking Detections 10 | . 10 . Full Trace Events 2 | . 2 . Feedback Events . | . . . Feedback Blocked . | . . . Robot Schematics Acquired . | . . . Robots Built . | . . . Authchips . | . . . Time . | . . . Total Robot Build Rating . | . . . Part Schematics Acquired . | . . . Parts Built . | . . . Authchips . | . . . Time . | . . . Total Part Build Rating . | . . . Part Studies Acquired . | . . . Parts Repaired 1 | . 1 . Time 26 | . 26 . Parts Recycled . | . . . Recycled Matter . | . . . Retrieved Matter . | . . . Retrieved Components 9 | . 9 . Parts Scanalyzed . | . . . Part Schematics Acquired . | . . . Parts Damaged . | . . . Bothacking | -11 -10 -10 ------------ Run | Yrd Mat Sub Used RIF Installer . | . . . Robots Hacked . | . . . Non-combat . | . . . Combat . | . . . Robot Hacks Applied . | . . . Relay Couplers Released . | . . . Fabnet Peak Effective % . | . . . Robots Rewired . | . . . Allies Hacked . | . . . Hacks Repelled . | . . . Allies | -11 -10 -10 -------- Run | Yrd Mat Sub Total Allies . | . . . Largest Group . | . . . Highest-Rated Group . | . . . Highest-Rated Ally . | . . . Total Orders . | . . . Ally Attacks . | . . . Total Damage . | . . . Kills . | . . . Allies Corrupted . | . . . Allies Melted . | . . . Intel | -11 -10 -10 ------- Run | Yrd Mat Sub Active Infowar (turns) 427 | 15 137 275 Optics 15 | . 15 . Terrain 275 | . . 275 Seismic 137 | 15 122 . Robot Analysis Total 1 | . 1 . Derelict Logs Recovered 2 | . . 2 Drone Launches . | . . . Drone Recoveries . | . . . Exploration | -11 -10 -10 ------------- Run | Yrd Mat Sub Turns Passed 2876 | 52 1558 1266 Spaces Moved 1201 | 20 681 500 Core . | . . . Treads 1182 | 1 681 500 Legs 19 | 19 . . Wheels . | . . . Hover . | . . . Flight . | . . . Fastest Speed 120 | 120 160 160 Average Speed 178 | 122 193 160 Slowest Speed 240 | 160 240 160 Overloaded Moves . | . . . Propulsion Burnouts . | . . . Robots Hopped . | . . . Potential Cave-ins 4 | . . 4 Cave-ins Triggered . | . . . Exploration Rate (%) 40 | 3 97 22 Regions Visited 2 Branch Regions 1 Pre-discovered Areas 4 | . 4 . Known Exits Taken . | . . . Unknown Exits Taken 2 | 1 1 . Scrap Searched . | . . . Spaces Dug 34 | . 15 19 Terrain Destroyed 62 | . 25 37 Melee . | . . . Projectile 27 | . . 27 AOE 35 | . 25 10 Terrain Rammed . | . . . Walls Destroyed . | . . . Machines Disabled . | . . . Actions | -11 -10 -10 --------- Run | Yrd Mat Sub Total 1767 | 32 831 904 Wait 434 | . 67 367 Move 1199 | 19 680 500 Hop . | . . . Pick Up 13 | . 12 1 Fast Attach 2 | 1 1 . Attach 2 | 2 . . Detach . | . . . Swap 21 | . 17 4 Drop 5 | 2 3 . Fire 89 | 8 49 32 Melee . | . . . Ram . | . . . Kick . | . . . Crush 2 | . 2 . Escape Stasis . | . . . Rewire . | . . . Trap . | . . . Miscellaneous . | . . . Route ------- -11/Scrapyard -10/Materials (discovered 5 exits: *Mat x3 / [*Min] / [*Sub]) -10/Subcaves History --------- Turn | Location | Event 13 | -11/Scrapyard | Discovered new exit (range 3) 53 | -11/Scrapyard | Entered Materials 326 | -10/Materials | Build established: Mutant 488 | -10/Materials | Discovered new exit (range 5) 621 | -10/Materials | Discovered new exit (range 15) 671 | -10/Materials | Repaired Lgt. Treads 983 | -10/Materials | Discovered new exit (range 14) 1190 | -10/Materials | Learned Storage stockpile data 1213 | -10/Materials | Discovered new exit (range 4) 1257 | -10/Materials | Identified exit to Materials 1315 | -10/Materials | Learned location of Mines (-8) 1407 | -10/Materials | Learned location of 2 exits from Materials 1494 | -10/Materials | Learned location of 1 exit from Storage 1535 | -10/Materials | Learned location of 1 exit from Storage 1586 | -10/Materials | Learned 2 Mines zone layouts 1611 | -10/Materials | Entered Subcaves 1612 | -10/Subcaves | Approached by a straggling Scientist 1613 | -10/Subcaves | Learned Materials interactive machine intel 1619 | -10/Subcaves | Learned Materials security intel 2067 | -10/Subcaves | Core integrity fell below 50% 2146 | -10/Subcaves | Ambushed by Subdweller buried in earth 2319 | -10/Subcaves | Shifting Twisted Machinery released Sub. Laser 2327 | -10/Subcaves | Shifting Twisted Machinery released Spk. Treads 2874 | -10/Subcaves | Core integrity fell below 20% 2877 | -10/Subcaves | Destroyed by Shrapnel Trap Last Messages --------------- here" Spk. Treads falls loose from the Twisted Machinery. 02339_ Acquired Sub. Laser. N6-FN7(c): "I think it's somewhere east of here" N6-FN7(c): "I think it's somewhere northeast of here" N6-FN7(c): "We're getting close, I can feel it." N6-FN7(c): "I think it's somewhere north of here" N6-FN7(c): "I think it's somewhere northeast of here" N6-FN7(c): "I think it's somewhere east of here" 02873_ Triggered Piercing Trap. 02873_ Spikes shoot up from the floor. 02873_ Critical hit (Impale). 02877_ Triggered Shrapnel Trap. 02877_ An expanding cloud of shrapnel blasts out in all directions. Map ----- +----------------------------------------------------+ | ??????????# "^#??##" #????????#????????????? | | ?????????## "##??### ####??????#???????????? | | ???????### "#?#???## " #????????????????#?? | | ??????## "######## "" #??????#?#?????????? | | ??????# # "# ""## #?#?????#?#????#???? | | ??????## " "" """#?##????##????????????# | | ??????## ""###??????#???#??##????? | | ??????# #### " ####??????##????????? | | ??????## ?### #???##??????????#???? | | ???????### #??## #??#????????????????# | | ?????????# #??###### #???????????????????? | | ?????????## #???????# #?#??????????#?????#? | | ??????????## ##???????# ##????????????#???#?? | | ???????????#^ #???????## #####??#??#???????#? | | ??????????? #????#??# ### #?????#######??? | | ??????????? ???????### ## ##??### # # ###? | | ?????????? ??????#?### #### #? | | ?????????? ##????#???## #? | | ??????????### #?????????# # ### | | ????????????# #???????### ## ####### ##? | | ????????????? ?#?????## ### ##????## #?? | | ???????????#? ???????## ###### #??#??# #?# | | ??????????## ???????#c ##?# ##?#??? ##?? | | ?????????## ??????## #?## ######?#?#?? | | ?????????# ?????# ### #??# ## ####### | | ?????????## #### @### #?## ### # # | | ????????????? ??# ### ##?# | | ????????????????# #?# #?# ### # # | | ???????????????# ### ######??###?###?####### ## | | ????????????????????####?????????????????????#### | | ???????????????????????????????????????????#????# | | ??????????? ????????????????????????????????????# | | ????????????????????????????????#???????????????# | | ????????????????????????????????????????????????# | | ??????????????????????????????#?????????????????## | | ?????????????????????????????????????????????????? | | ?????????????????????????????????????????????????? | | ????????????????#????????????????????????????????? | | ?????????????????????????????????????????????????? | | ??????????????????????#??????????????????????????? | | ?????????????????????????????????????????????????? | | ?????????????????????????????????????????????????? | | ?????????????????????????????????????????????????? | | ?????????????????????????????????????????????????? | | ???????????????????????##########?##########?????? | | ???????????????????????# #""# ### " #?????? | | ??????????????????????## """ "" #??????? | | ??????????????????????# "" " " ##?????? | | ??????????????????????## #""" ####### | | ??????????????????????## ##### & # | +----------------------------------------------------+ Best States ------------- Heat Dissipation 47 Energy Generation 10 Energy Capacity 250 Matter Stores 300 Matter Capacity 300 Sight Range 18 Terrain Scan Range 16 Terrain Scan Density 10 Evasion (%) 55 Recoil Reduction 2 Item Schematics ----------------- None Robot Schematics ------------------ None Fabricated ------------ Nothing Repaired ---------- Lgt. Treads | 52% | -10/Materials Studied --------- None Alien Tech Used ----------------- None Achievements -------------- None Challenges ------------ None Game ------ Seed UtilityTacticalRegenerator Manual? 0 Play Time 00:15:21 Cumulative 388.6 hours Start 2026.04.05 @ 04:37:33 End 2026.04.05 @ 16:12:00 Sessions 2 Manual Loads 0 Difficulty Rogue Special Mode None Game No. 328 Rogue 292 Adventurer 36 Explorer 0 Win Type - Total 5 Types 2/0/0/1/0/0/0/2/0/0 Lore% 73 Gallery% 66 Achievement% 55 Wizard Run 0 Options --------- Layout 1 ASCII 0 Keyboard 0 Movement Numpad Keybinds 0 Fullscreen 1 Font 48/Smallcaps Map View 50x35 Zoom Use 0% Tactical HUD 1 Map Filters NONE Filters NONE Steam 1 RUN: 1a1cf869-5b53-443b-a7f3-cffad8dae81a